fUST/lending_fUST_20250311
["ID","MTS","AMOUNT","RATE_DAILY","PERIOD"]
[355877631,1741671048486,-500.0,0.00046414,120]
[355877632,1741671048496,-500.0,0.00046414,120]
[355877633,1741671048506,-337.63767151,0.00046414,120]
[355877634,1741671048515,-619.85,0.00046414,120]
[355877635,1741671048525,-500.0,0.00046414,120]
[355877636,1741671048535,-500.0,0.00046414,120]
[355877637,1741671048545,-500.0,0.00046414,120]
[355877638,1741671048555,-500.0,0.00046414,120]
[355877639,1741671048565,-1082.17,0.00046414,120]
[355877641,1741671048575,-500.0,0.00046414,120]
[355877642,1741671048585,-500.0,0.00046414,120]
[355877643,1741671048596,-500.0,0.00046414,120]
[355877644,1741671048606,-818.96,0.00046414,120]
[355877645,1741671048616,-905.08,0.00046414,120]
[355877646,1741671048626,-1180.37,0.00046414,120]
[355877647,1741671048636,-500.0,0.00046414,120]
[355877648,1741671048646,-1000.0,0.00046414,120]
[355877649,1741671048661,-897.8,0.00046414,120]
[355877650,1741671048672,-594.8,0.00046414,120]
[355877651,1741671048682,-1103.68,0.00046414,120]
[355877652,1741671048692,-1089.22,0.00046414,120]
[355877653,1741671048703,-649.93,0.00046414,120]
[355877654,1741671048712,-1157.05,0.00046414,120]
[355877655,1741671048722,-887.63,0.00046414,120]
[355877656,1741671048732,-500.0,0.00046414,120]
[355877657,1741671048742,-1896.94,0.00046414,120]
[355877658,1741671048752,-959.31,0.00046414,120]
[355877659,1741671048762,-1013.145051,0.00046415,120]
[355877660,1741671048772,-1013.145051,0.00046415,120]
[355877661,1741671048782,-559.47,0.00046416,120]
[355877662,1741671048792,-500.0,0.00046416,30]
[355877663,1741671048802,-500.63931598,0.00046416,120]
[355877664,1741671048813,-500.0,0.00046416,120]
[355877665,1741671048824,-537.83635398,0.00046416,120]
[355877666,1741671048834,-188.0,0.00046416,120]
[355877667,1741671048844,-761.64,0.00046416,120]
[355877668,1741671048854,-500.0,0.00046416,120]
[355877669,1741671048866,-500.0,0.00046416,120]
[355877670,1741671048877,-190.84821005,0.00046416,120]
[355877671,1741671048888,-508.09775494,0.00046416,120]
[355877672,1741671048901,-512.30957948,0.00046416,120]
[355877673,1741671048926,-500.0,0.00046416,120]
[355877674,1741671048937,-511.95917702,0.00046416,120]
[355877676,1741671048947,-287.86526528,0.00046416,120]
[355877677,1741671048958,-500.0,0.00046416,120]
[355877678,1741671048969,-500.0,0.00046416,120]
[355877679,1741671048980,-500.0,0.00046416,120]
[355877680,1741671048990,-500.0,0.00046416,120]
[355877681,1741671049000,-500.0,0.00046416,120]
[355877682,1741671049011,-500.0,0.00046416,120]
[355877683,1741671049022,-580.85249931,0.00046416,120]
[355877684,1741671049032,-598.6,0.00046416,120]
[355877685,1741671049042,-500.0,0.00046416,120]
[355877686,1741671049053,-500.0,0.00046416,120]
[355877687,1741671049063,-500.0,0.00046416,120]
[355877688,1741671049073,-500.0,0.00046416,120]
[355877690,1741671049083,-500.0,0.00046416,120]
[355877692,1741671049093,-500.0,0.00046416,120]
[355877694,1741671049102,-327.44173136,0.00046416,120]
[355877696,1741671049112,-500.0,0.00046416,120]
[355877698,1741671049122,-500.0,0.00046416,120]
[355877700,1741671049132,-534.45201008,0.00046416,120]
[355877701,1741671049142,-500.0,0.00046416,120]
[355877702,1741671049152,-500.0,0.00046416,120]
[355877703,1741671049164,-617.24276204,0.00046416,120]
[355877704,1741671049175,-760.76,0.00046416,120]
[355877705,1741671049185,-500.0,0.00046416,120]
[355877706,1741671049195,-500.0,0.00046416,120]
[355877707,1741671049205,-575.75115764,0.00046416,120]
[355877708,1741671049215,-1023.69642672,0.00046416,20]
[355877709,1741671049225,-500.0,0.00046416,120]
[355877710,1741671049235,-500.0,0.00046416,120]
[355877711,1741671049245,-500.0,0.00046416,120]
[355877712,1741671049255,-500.0,0.00046416,120]
[355877713,1741671049265,-1312.16,0.00046416,120]
[355877714,1741671049274,-500.0,0.00046416,120]
[355877715,1741671049284,-540.56230543,0.00046416,120]
[355877716,1741671049293,-941.09,0.00046416,120]
[355877717,1741671049303,-500.0,0.00046416,120]
[355877718,1741671049313,-500.0,0.00046416,120]
[355877719,1741671049323,-500.0,0.00046416,120]
[355877720,1741671049332,-669.14,0.00046416,120]
[355877721,1741671049342,-823.88,0.00046416,120]
[355877722,1741671049352,-500.0,0.00046416,120]
[355877723,1741671049362,-1292.1,0.00046416,120]
[355877724,1741671049372,-966.47,0.00046416,120]
[355877725,1741671049381,-533.58706514,0.00046416,120]
[355877726,1741671049390,-492.12573375,0.00046416,120]
[355877727,1741671049400,-500.0,0.00046416,120]
[355877728,1741671049412,-531.33,0.00046416,120]
[355877729,1741671049422,-500.0,0.00046416,120]
[355877730,1741671049433,-537.73837101,0.00046416,120]
[355877731,1741671049443,-500.0,0.00046416,120]
[355877732,1741671049452,-228.65966371,0.00046416,120]
[355877733,1741671049462,-500.0,0.00046416,120]
[355877734,1741671049471,-500.0,0.00046416,120]
[355877735,1741671049481,-857.32,0.00046416,120]
[355877736,1741671049491,-500.0,0.00046416,120]
[355877737,1741671049501,-500.0,0.00046416,120]
[355877738,1741671049511,-500.0,0.00046416,120]
[355877739,1741671049520,-500.0,0.00046416,120]
[355877740,1741671049530,-500.0,0.00046416,120]
[355877741,1741671049539,-500.0,0.00046416,120]
[355877742,1741671049548,-500.0,0.00046416,120]
[355877743,1741671049558,-500.0,0.00046416,120]
[355877744,1741671049567,-500.0,0.00046416,120]
[355877745,1741671049577,-500.0,0.00046416,120]
[355877746,1741671049587,-1224.92,0.00046416,120]
[355877747,1741671049596,-942.57,0.00046416,120]
[355877749,1741671049606,-306.15550692,0.00046416,120]
[355877750,1741671049616,-500.0,0.00046416,120]
[355877751,1741671049625,-500.0,0.00046416,30]
[355877752,1741671049635,-500.0,0.00046416,120]
[355877753,1741671049644,-895.39,0.00046416,120]
[355877755,1741671049655,-500.0,0.00046416,120]
[355877757,1741671049664,-517.91013905,0.00046416,120]
[355877759,1741671049674,-500.0,0.00046416,120]
[355877761,1741671049683,-500.0,0.00046416,120]
[355877762,1741671049834,-802.38222908,0.00046455,2]
[355877763,1741671049846,-636.88418316,0.00046486,10]
[355877764,1741671049856,-500.0,0.00046486,10]
[355877765,1741671049867,-832.07037156,0.0004651,2]
[355877766,1741671049876,-800.0,0.00046534,14]
[355877767,1741671049886,-500.0,0.00046534,120]
[355877768,1741671049896,-567.23,0.00046534,120]
[355877769,1741671049912,-500.0,0.00046534,120]
[355877770,1741671049922,-7238.45,0.00046544,120]
[355877771,1741671049933,-1569.0,0.00046544,120]
[355877772,1741671049943,-1378.14,0.00046544,7]
[355877773,1741671049953,-845.2,0.00046544,120]
[355877774,1741671049963,-885.59,0.00046544,120]
[355877775,1741671049974,-16131.53,0.00046544,2]
[355877776,1741671049984,-500.0,0.00046544,2]
[355877777,1741671049995,-500.0,0.00046544,120]
[355877778,1741671050005,-500.0,0.00046544,120]
[355877779,1741671050015,-617.21,0.00046544,2]
[355877780,1741671050025,-156.587,0.00046563,2]
[355877781,1741671050034,-862.8569753,0.00046565,2]
[355877782,1741671050045,-500.0,0.00046573,10]
[355877783,1741671050054,-1068.87,0.00046574,120]
[355877784,1741671050064,-500.0,0.00046575,120]
[355877785,1741671050074,-500.0,0.00046575,120]
[355877786,1741671050084,-159.41205986,0.00046575,10]
[355877787,1741671050094,-500.0,0.00046575,10]
[355877788,1741671050103,-500.0,0.00046575,60]
[355877789,1741671050113,-210.03265791,0.00046575,120]
[355877790,1741671050123,-206.97238178,0.0004658,120]
[355877791,1741671050132,-206.97,0.0004658,120]
[355877792,1741671050142,-160.97851917,0.0004658,120]
[355877793,1741671050153,-160.97851917,0.0004658,120]
[355877794,1741671050165,-160.97851917,0.0004658,120]
[355877795,1741671050175,-160.97851917,0.0004658,120]
[355877796,1741671050185,-160.97851917,0.0004658,120]
[355877797,1741671050196,-160.97,0.0004658,120]
[355877798,1741671050206,-152.46538798,0.0004658,120]
[355877799,1741671050215,-152.46538798,0.0004658,120]
[355877800,1741671050224,-152.46538798,0.0004658,120]
[355877801,1741671050234,-152.46538798,0.0004658,120]
[355877802,1741671050244,-152.46538798,0.0004658,120]
[355877803,1741671050254,-152.46538798,0.0004658,120]
[355877804,1741671050264,-152.46538798,0.0004658,120]
[355877805,1741671050274,-152.46,0.0004658,120]
[355877806,1741671050283,-158.1122542,0.0004658,120]
[355877808,1741671050293,-158.1122542,0.0004658,120]
[355877810,1741671050302,-158.1122542,0.0004658,120]
[355877811,1741671050312,-158.1122542,0.0004658,120]
[355877812,1741671050322,-158.1122542,0.0004658,120]
[355877813,1741671050331,-158.1122542,0.0004658,120]
[355877814,1741671050340,-158.1122542,0.0004658,120]
[355877815,1741671050350,-158.1122542,0.0004658,120]
[355877816,1741671050359,-158.1122542,0.0004658,120]
[355877817,1741671050370,-158.1122542,0.0004658,120]
[355877818,1741671050380,-158.1122542,0.0004658,120]
[355877819,1741671050390,-158.1122542,0.0004658,120]
[355877820,1741671050399,-158.1122542,0.0004658,120]
[355877821,1741671050412,-158.1122542,0.0004658,120]
[355877822,1741671050422,-158.1122542,0.0004658,120]
[355877823,1741671050432,-158.1122542,0.0004658,120]
[355877824,1741671050441,-158.1122542,0.0004658,120]
[355877825,1741671050451,-158.11,0.0004658,120]
[355877826,1741671050461,-643.68009845,0.0004658,120]
[355877827,1741671050471,-643.68009845,0.0004658,120]
[355877828,1741671050480,-643.68009845,0.0004658,120]
[355877829,1741671050490,-643.68009845,0.0004658,120]
[355877830,1741671050500,-643.68009845,0.0004658,120]
[355877831,1741671050509,-643.68009845,0.0004658,120]
[355877832,1741671050519,-643.68009845,0.0004658,120]
[355877833,1741671050529,-643.68009845,0.0004658,120]
[355877834,1741671050539,-643.68009845,0.0004658,120]
[355877835,1741671050549,-643.68009845,0.0004658,120]
[355877836,1741671050558,-643.68009845,0.0004658,120]
[355877837,1741671050569,-643.68009845,0.0004658,120]
[355877838,1741671050579,-643.68009845,0.0004658,120]
[355877839,1741671050589,-643.68009845,0.0004658,120]
[355877840,1741671050599,-643.68009845,0.0004658,120]
[355877841,1741671050609,-643.68009845,0.0004658,120]
[355877842,1741671050619,-643.68009845,0.0004658,120]
[355877843,1741671050630,-643.68009845,0.0004658,120]
[355877844,1741671050640,-643.68009845,0.0004658,120]
[355877845,1741671050650,-643.68,0.0004658,120]
[355877846,1741671050661,-1501.92022972,0.0004658,120]
[355877847,1741671050671,-1501.92022972,0.0004658,120]
[355877848,1741671050682,-1501.92022972,0.0004658,120]
[355877849,1741671050692,-1501.92022972,0.0004658,120]
[355877850,1741671050701,-1501.92022972,0.0004658,120]
[355877851,1741671050712,-1501.92022972,0.0004658,120]
[355877852,1741671050722,-1501.92022972,0.0004658,120]
[355877853,1741671050732,-1501.92022972,0.0004658,120]
[355877854,1741671050742,-1501.92022972,0.0004658,120]
[355877855,1741671050752,-1501.92022972,0.0004658,120]
[355877856,1741671050762,-1501.92022972,0.0004658,120]
[355877857,1741671050772,-1501.92022972,0.0004658,120]
[355877858,1741671050782,-1501.92022972,0.0004658,120]
[355877859,1741671050792,-1501.92022972,0.0004658,120]
[355877860,1741671050802,-1501.92022972,0.0004658,120]
[355877861,1741671050812,-1501.92022972,0.0004658,120]
[355877862,1741671050822,-1501.92022972,0.0004658,120]
[355877863,1741671050831,-1501.92022972,0.0004658,120]
[355877864,1741671050841,-1501.92022972,0.0004658,120]
[355877865,1741671050852,-1501.92,0.0004658,120]
[355877866,1741671050862,-500.0,0.00046589,120]
[355877867,1741671050872,-22250.56,0.00046589,120]
[355877868,1741671050882,-592.99,0.00046589,120]
[355877869,1741671050892,-1784.43,0.00046589,120]
[355877870,1741671050903,-500.0,0.00046589,21]
[355877871,1741671050921,-2403.08,0.00046589,120]
[355877872,1741671050933,-1045.13,0.00046589,120]
[355877873,1741671050943,-1839.17,0.00046589,120]
[355877874,1741671050952,-500.0,0.00046589,120]
[355877875,1741671050963,-3487.62,0.00046589,120]
[355877876,1741671050973,-4582.13,0.00046589,120]
[355877877,1741671050983,-500.0,0.00046589,120]
[355877878,1741671050992,-500.0,0.00046589,120]
[355877879,1741671051003,-7871.43,0.00046589,120]
[355877880,1741671051012,-2636.81,0.00046589,120]
[355877881,1741671051022,-4079.66,0.00046589,120]
[355877882,1741671051032,-569.56302705,0.00046589,120]
[355877883,1741671051043,-834.37,0.00046589,120]
[355877884,1741671051053,-500.0,0.00046589,120]
[355877885,1741671051062,-1713.18,0.00046589,120]
[355877886,1741671051072,-500.0,0.00046589,120]
[355877887,1741671051082,-514.21,0.00046589,120]
[355877888,1741671051092,-500.0,0.00046589,120]
[355877889,1741671051102,-1611.7,0.00046589,120]
[355877890,1741671051111,-919.23,0.00046589,120]
[355877891,1741671051121,-564.03,0.00046589,30]
[355877892,1741671051131,-1236.69,0.00046589,120]
[355877893,1741671051141,-7058.45,0.00046589,120]
[355877894,1741671051151,-5675.67,0.00046589,120]
[355877895,1741671051164,-784.36,0.00046589,120]
[355877896,1741671051174,-500.0,0.0004659,120]
[355877897,1741671051185,-500.0,0.0004659,120]
[355877898,1741671051195,-899.35,0.0004659,120]
[355877899,1741671051205,-500.0,0.0004659,120]
[355877900,1741671051214,-500.0,0.0004659,120]
[355877901,1741671051224,-500.0,0.0004659,120]
[355877902,1741671051234,-564.55109445,0.0004659,120]
[355877903,1741671051244,-500.0,0.0004659,120]
[355877904,1741671051253,-500.0,0.0004659,120]
[355877905,1741671051263,-326.50456539,0.0004659,120]
[355877906,1741671051273,-919.81,0.0004659,120]
[355877907,1741671051282,-500.0,0.0004659,120]
[355877908,1741671051292,-908.76,0.0004659,120]
[355877909,1741671051302,-500.0,0.0004659,120]
[355877910,1741671051311,-529.70967319,0.0004659,120]
[355877911,1741671051321,-500.0,0.0004659,120]
[355877912,1741671051330,-500.0,0.0004659,120]
[355877913,1741671051340,-500.0,0.0004659,120]
[355877914,1741671051349,-1007.62895876,0.0004659,5]
[355877915,1741671051358,-500.0,0.0004659,120]
[355877916,1741671051368,-500.0,0.0004659,120]
[355877917,1741671051377,-500.0,0.0004659,120]
[355877918,1741671051387,-1113.59,0.0004659,120]
[355877919,1741671051396,-582.15,0.0004659,120]
[355877920,1741671051406,-207.6285424,0.0004659,120]
[355877921,1741671051415,-500.0,0.0004659,120]
[355877922,1741671051424,-500.0,0.0004659,120]
[355877923,1741671051555,-868.05,0.0004659,120]
[355877924,1741671051566,-567.85661692,0.0004659,120]
[355877925,1741671051576,-500.0,0.0004659,120]
[355877926,1741671051586,-500.0,0.0004659,120]
[355877927,1741671051596,-505.88,0.0004659,120]
[355877928,1741671051606,-890.8,0.0004659,120]
[355877929,1741671051615,-516.61,0.0004659,120]
[355877930,1741671051625,-500.0,0.0004659,120]
[355877931,1741671051635,-500.0,0.0004659,120]
[355877932,1741671051644,-500.0,0.0004659,120]
[355877933,1741671051654,-500.0,0.0004659,120]
[355877934,1741671051664,-500.0,0.0004659,120]
[355877935,1741671051674,-507.39006803,0.0004659,120]
[355877936,1741671051688,-500.0,0.0004659,120]
[355877937,1741671051697,-500.0,0.0004659,120]
[355877938,1741671051707,-894.63,0.0004659,120]
[355877939,1741671051716,-500.0,0.0004659,120]
[355877940,1741671051726,-500.0,0.0004659,120]
[355877941,1741671051736,-500.0,0.0004659,120]
[355877942,1741671051745,-500.0,0.0004659,120]
[355877943,1741671051754,-504.04310679,0.0004659,120]
[355877944,1741671051763,-553.1300566,0.0004659,120]
[355877945,1741671051773,-500.0,0.0004659,120]
[355877946,1741671051783,-500.0,0.0004659,120]
[355877947,1741671051792,-500.0,0.0004659,5]
[355877948,1741671051802,-500.0,0.0004659,120]
[355877949,1741671051812,-500.0,0.0004659,120]
[355877950,1741671051821,-437.69272959,0.0004659,120]
[355877951,1741671051830,-746.0,0.0004659,120]
[355877952,1741671051840,-500.0,0.0004659,120]
[355877953,1741671051850,-521.28815808,0.0004659,120]
[355877954,1741671051859,-503.40769548,0.0004659,120]
[355877955,1741671051869,-500.0,0.0004659,120]
[355877956,1741671051878,-500.0,0.0004659,120]
[355877957,1741671051887,-500.0,0.0004659,120]
[355877958,1741671051897,-500.0,0.0004659,120]
[355877959,1741671051914,-500.0,0.0004659,120]
[355877960,1741671051925,-500.0,0.0004659,120]
[355877961,1741671051935,-3743.28,0.0004659,120]
[355877962,1741671051946,-500.0,0.0004659,120]
[355877963,1741671051956,-505.45,0.0004659,120]
[355877965,1741671051966,-500.0,0.0004659,120]
[355877967,1741671051977,-500.0,0.0004659,120]
[355877969,1741671051987,-500.0,0.0004659,120]
[355877971,1741671051999,-1078.5,0.0004659,120]
[355877973,1741671052008,-500.0,0.0004659,120]
[355877975,1741671052018,-500.0,0.0004659,120]
[355877976,1741671052027,-500.0,0.0004659,120]
[355877977,1741671052037,-500.0,0.0004659,120]
[355877978,1741671052047,-500.0,0.0004659,120]
[355877979,1741671052057,-500.0,0.0004659,120]
[355877980,1741671052066,-1501.0,0.0004659,120]
[355877981,1741671052076,-500.0,0.0004659,120]
[355877983,1741671052085,-500.0,0.0004659,120]
[355877984,1741671052095,-7363.7,0.0004659,120]
[355877985,1741671052105,-500.0,0.0004659,120]
[355877986,1741671052114,-500.0,0.0004659,120]
[355877988,1741671052124,-500.0,0.0004659,120]
[355877990,1741671052133,-578.02,0.0004659,120]
[355877992,1741671052143,-500.0,0.0004659,120]
[355877993,1741671052152,-871.06,0.0004659,2]
[355877994,1741671052167,-500.0,0.0004659,120]
[355877995,1741671052176,-500.0,0.0004659,120]
[355877996,1741671052186,-500.0,0.0004659,120]
[355877998,1741671052196,-874.26,0.0004659,120]
[355877999,1741671052206,-500.0,0.0004659,120]
[355878000,1741671052216,-396.80405796,0.0004659,120]
[355878001,1741671052226,-190050.6,0.0004659,7]
[355878002,1741671052236,-500.0,0.0004659,120]
[355878004,1741671052245,-500.0,0.0004659,120]
[355878005,1741671052255,-500.0,0.0004659,120]
[355878006,1741671052265,-500.0,0.0004659,120]
[355878007,1741671052275,-500.0,0.0004659,120]
[355878008,1741671052285,-640.16135022,0.0004659,120]
[355878009,1741671052295,-500.0,0.0004659,120]
[355878010,1741671052305,-500.0,0.0004659,120]
[355878011,1741671052315,-1088.86,0.0004659,120]
[355878012,1741671052324,-1705.27,0.0004659,120]
[355878013,1741671052334,-1143.53,0.0004659,120]
[355878014,1741671052343,-1013.85,0.0004659,120]
[355878015,1741671052353,-500.0,0.0004659,120]
[355878016,1741671052362,-1940.74,0.0004659,120]
[355878017,1741671052372,-500.0,0.0004659,120]
[355878018,1741671052382,-559.07,0.0004659,120]
[355878019,1741671052391,-500.0,0.0004659,120]
[355878020,1741671052400,-5871.79,0.0004659,60]
[355878021,1741671052412,-500.0,0.0004659,120]
[355878022,1741671052422,-6071.21,0.0004659,120]
[355878023,1741671052431,-1799.41,0.0004659,120]
[355878024,1741671052440,-552.69424193,0.0004659,120]
[355878025,1741671052450,-1087.16,0.0004659,120]
[355878026,1741671052459,-500.0,0.0004659,120]
[355878027,1741671052469,-931.28,0.0004659,120]
[355878028,1741671052480,-500.0,0.0004659,120]
[355878029,1741671052489,-500.0,0.0004659,120]
[355878030,1741671052500,-500.0,0.0004659,120]
[355878031,1741671052509,-500.0,0.0004659,120]
[355878032,1741671052519,-535.48453671,0.0004659,120]
[355878033,1741671052528,-500.0,0.0004659,120]
[355878034,1741671052538,-623.32,0.0004659,120]
[355878035,1741671052547,-1200.3,0.0004659,120]
[355878036,1741671052556,-748.08,0.0004659,120]
[355878037,1741671052566,-500.0,0.0004659,120]
[355878038,1741671052576,-500.0,0.0004659,120]
[355878039,1741671052585,-500.12,0.0004659,120]
[355878040,1741671052595,-500.0,0.0004659,120]
[355878041,1741671052604,-1138.31,0.0004659,120]
[355878042,1741671052614,-4555.02,0.0004659,120]
[355878043,1741671052623,-1148.83,0.0004659,120]
[355878044,1741671052633,-500.0,0.0004659,120]
[355878045,1741671052642,-500.0,0.0004659,120]
[355878046,1741671052651,-500.0,0.0004659,120]
[355878047,1741671052663,-500.0,0.0004659,30]
[355878048,1741671052671,-500.0,0.0004659,120]
[355878049,1741671052681,-1609.36,0.0004659,120]
[355878050,1741671052690,-969.75,0.0004659,120]
[355878051,1741671052700,-757.16,0.0004659,120]
[355878052,1741671052710,-939.72,0.0004659,120]
[355878053,1741671052720,-500.0,0.0004659,120]
[355878054,1741671052729,-500.0,0.0004659,120]
[355878055,1741671052739,-24486.33,0.0004659,120]
[355878056,1741671052748,-666.05,0.0004659,120]
[355878057,1741671052758,-500.0,0.0004659,120]
[355878058,1741671052768,-500.0,0.0004659,120]
[355878059,1741671052778,-500.0,0.0004659,120]
[355878060,1741671052788,-500.0,0.0004659,120]
[355878061,1741671052798,-500.0,0.0004659,120]
[355878062,1741671052807,-500.0,0.0004659,120]
[355878063,1741671052817,-500.0,0.0004659,120]
[355878064,1741671052826,-500.0,0.0004659,120]
[355878065,1741671052836,-537.83443186,0.0004659,120]
[355878066,1741671052846,-1755.39,0.0004659,120]
[355878067,1741671052855,-853.36,0.0004659,120]
[355878068,1741671052865,-500.0,0.0004659,120]
[355878069,1741671052874,-500.0,0.0004659,120]
[355878070,1741671052884,-220.6632637,0.0004659,120]
[355878071,1741671052894,-500.0,0.0004659,120]
[355878072,1741671052904,-646.4,0.0004659,120]
[355878073,1741671052917,-941.02,0.0004659,120]
[355878074,1741671052930,-1497.87,0.0004659,120]
[355878075,1741671052940,-500.0,0.0004659,120]
[355878076,1741671052949,-1491.39,0.0004659,120]
[355878077,1741671052959,-500.0,0.0004659,120]
[355878078,1741671052970,-896.08,0.0004659,120]
[355878079,1741671052981,-7116.89,0.0004659,120]
[355878080,1741671052992,-500.0,0.0004659,120]
[355878081,1741671053216,-845.87,0.0004659,120]
[355878082,1741671053227,-1129.2,0.0004659,120]
[355878083,1741671053237,-500.0,0.0004659,120]
[355878084,1741671053247,-500.0,0.0004659,120]
[355878085,1741671053257,-1011.13,0.0004659,120]
[355878086,1741671053267,-519.23586995,0.0004659,120]
[355878087,1741671053276,-500.0,0.0004659,120]
[355878088,1741671053286,-500.0,0.0004659,120]
[355878089,1741671053296,-1460.53,0.0004659,120]
[355878090,1741671053305,-3479.02,0.0004659,120]
[355878091,1741671053315,-500.0,0.0004659,120]
[355878092,1741671053325,-500.0,0.0004659,120]
[355878093,1741671053334,-551.35365244,0.0004659,120]
[355878094,1741671053345,-500.0,0.0004659,120]
[355878095,1741671053354,-500.0,0.0004659,120]
[355878096,1741671053364,-3068.76,0.0004659,120]
[355878097,1741671053374,-500.0,0.0004659,120]
[355878098,1741671053384,-1263.27,0.0004659,120]
[355878099,1741671053394,-791.66,0.0004659,120]
[355878100,1741671053403,-500.0,0.0004659,120]
[355878101,1741671053415,-500.0,0.0004659,120]
[355878102,1741671053424,-500.0,0.0004659,120]
[355878103,1741671053434,-500.0,0.0004659,120]
[355878104,1741671053443,-885.15,0.0004659,120]
[355878105,1741671053453,-500.0,0.0004659,120]
[355878106,1741671053463,-832.02,0.0004659,120]
[355878107,1741671053473,-2980.32,0.0004659,120]
[355878108,1741671053482,-500.0,0.0004659,120]
[355878109,1741671053492,-1013.145051,0.0004659,120]
[355878110,1741671053502,-500.0,0.0004659,120]
[355878111,1741671053512,-1013.145051,0.0004659,120]
[355878112,1741671053521,-1013.145051,0.0004659,120]
[355878113,1741671053531,-1013.145051,0.0004659,120]
[355878114,1741671053540,-500.0,0.0004659,120]
[355878115,1741671053549,-627.35,0.0004659,120]
[355878116,1741671053559,-500.0,0.0004659,120]
[355878117,1741671053568,-500.0,0.0004659,120]
[355878118,1741671053578,-543.11,0.0004659,120]
[355878119,1741671053588,-847.37,0.0004659,120]
[355878120,1741671053598,-848.52,0.0004659,120]
[355878121,1741671053608,-894.78268339,0.0004662,2]
[355878122,1741671053618,-500.0,0.00046688,120]
[355878123,1741671053628,-500.0,0.00046688,120]
[355878124,1741671053639,-532.07268586,0.00046688,120]
[355878125,1741671053649,-500.0,0.00046688,120]
[355878126,1741671053662,-374.42710858,0.00046688,90]
[355878127,1741671053672,-500.0,0.00046688,120]
[355878128,1741671053682,-1071.99,0.00046688,120]
[355878129,1741671053692,-500.0,0.00046688,120]
[355878130,1741671053703,-859.8,0.00046688,120]
[355878131,1741671053713,-500.0,0.00046688,120]
[355878132,1741671053722,-509.16841289,0.00046688,120]
[355878133,1741671053732,-903.23,0.00046688,120]
[355878134,1741671053742,-500.0,0.00046688,120]
[355878135,1741671053751,-500.0,0.00046688,120]
[355878136,1741671053761,-500.0,0.00046688,120]
[355878137,1741671053771,-500.0,0.00046688,120]
[355878138,1741671053781,-500.0,0.00046688,120]
[355878139,1741671053791,-697.55,0.00046688,120]
[355878140,1741671053800,-866.02,0.00046688,120]
[355878141,1741671053809,-700.32,0.00046688,120]
[355878142,1741671053820,-527.31280979,0.00046688,120]
[355878143,1741671053829,-787.2,0.00046688,120]
[355878144,1741671053839,-527.74057109,0.00046688,120]
[355878145,1741671053849,-500.0,0.00046688,120]
[355878146,1741671053859,-219.5,0.00046688,120]
[355878147,1741671053869,-500.0,0.00046688,120]
[355878148,1741671053879,-500.0,0.00046688,120]
[355878149,1741671053902,-500.0,0.00046688,120]
[355878150,1741671053928,-619.85,0.00046688,120]
[355878151,1741671053951,-500.0,0.00046688,120]
[355878152,1741671053975,-500.0,0.00046688,120]
[355878153,1741671054004,-500.0,0.00046688,120]
[355878154,1741671054029,-500.0,0.00046688,120]
[355878155,1741671054051,-1082.17,0.00046688,120]
[355878156,1741671054069,-500.0,0.00046688,120]
[355878157,1741671054090,-500.0,0.00046688,120]